bitfinex/quotes_ETHUSD_20250520
["timestamp","ask_amount","ask_price","bid_price","bid_amount"]
[1747732071263,3.99181875,2536.9,2536.8,38.1804468]
[1747732071754,3.99181875,2536.9,2536.8,34.9703338]
[1747732071948,3.99181875,2536.9,2536.8,31.37363037]
[1747732072156,3.99181875,2536.9,2536.8,34.74550337]
[1747732072871,3.99181875,2536.9,2536.8,39.37363037]
[1747732073237,3.99181875,2536.9,2536.8,46.07163037]
[1747732073638,3.99181875,2536.9,2536.8,39.37363037]
[1747732074067,3.99181875,2536.9,2536.8,33.46663037]
[1747732074259,4.74461875,2536.9,2536.8,31.37363037]
[1747732074648,4.74461875,2536.9,2536.8,17.515]
[1747732074851,4.74461875,2536.9,2536.8,30.999]
[1747732075049,4.74461875,2536.9,2536.8,30.499]
[1747732077075,3.99181875,2536.9,2536.8,30.499]
[1747732078161,3.99181875,2536.9,2536.8,48.694154]
[1747732078367,3.99181875,2536.9,2536.8,39.62331176]
[1747732078961,3.99181875,2536.9,2536.8,34.32621176]
[1747732080681,3.99181875,2536.9,2536.8,32.92531176]
[1747732080870,3.99181875,2536.9,2536.8,17.38995676]
[1747732081047,3.99181875,2536.9,2536.8,30.87495676]
[1747732081948,3.99181875,2536.9,2536.8,38.87495676]
[1747732082352,3.99181875,2536.9,2536.8,25.38995676]
[1747732082552,3.99181875,2536.9,2536.8,38.85795676]
[1747732083981,4.80161875,2536.9,2536.8,30.85795676]
[1747732084383,3.99181875,2536.9,2536.8,30.85795676]
[1747732085000,3.99181875,2536.9,2536.8,31.35795676]
[1747732086089,4.80461875,2536.9,2536.8,31.35795676]
[1747732087077,4.80461875,2536.9,2536.8,38.983]
[1747732087369,4.80461875,2536.9,2536.8,30.983]
[1747732089483,4.80461875,2536.9,2536.8,38.983]
[1747732090593,5.32706757,2536.9,2536.8,25.076]
[1747732090796,5.32706757,2536.9,2536.8,24.576]
[1747732093498,4.80461875,2536.9,2536.8,24.576]
[1747732094771,3.99181875,2536.9,2536.8,24.576]
[1747732096908,3.99181875,2536.9,2536.8,17.015]
[1747732097071,3.99181875,2536.9,2536.8,24.577]
[1747732097467,4.81951875,2536.9,2536.8,24.577]
[1747732097672,5.69564424,2536.9,2536.8,24.577]
[1747732098771,5.69564424,2536.9,2536.8,17.015]
[1747732098972,5.69564424,2536.9,2536.8,24.577]
[1747732100578,5.69564424,2536.9,2536.8,17.015]
[1747732100778,5.69564424,2536.9,2536.8,24.577]
[1747732107313,3.99181875,2536.9,2536.8,24.577]
[1747732108501,3.99181875,2536.9,2536.8,37.510423]
[1747732108902,3.99181875,2536.9,2536.8,34.52699]
[1747732109223,1.0,2537.4,2537.0,0.7884]
[1747732109391,1.0,2537.4,2537.2,0.7884]
[1747732109575,3.94119733,2537.3,2537.2,0.7884]
[1747732110079,3.94119733,2537.3,2537.2,14.2604]
[1747732110280,3.94119733,2537.3,2537.2,2.21444]
[1747732110481,4.94104847,2537.4,2536.7,0.8271]
[1747732110482,3.94197414,2536.8,2536.7,0.8271]
[1747732110706,3.94197414,2536.8,2536.7,39.3141]
[1747732110879,3.94197414,2536.8,2536.7,39.68793916]
[1747732111992,3.94197414,2536.8,2536.7,39.3141]
[1747732113279,3.94197414,2536.8,2536.7,45.114254]
[1747732113485,3.94190971,2536.9,2536.8,8.0]
[1747732113684,3.94190971,2536.9,2536.8,17.40837]
[1747732114286,3.94190971,2536.9,2536.8,11.75233]
[1747732114783,3.94190971,2536.9,2536.8,21.87782107]
[1747732114986,3.94190971,2536.9,2536.8,8.37382107]
[1747732115278,3.94190971,2536.9,2536.8,13.87782107]
[1747732116317,3.94190971,2536.9,2536.8,21.87782107]
[1747732116893,3.94190971,2536.9,2536.8,21.504]
[1747732117399,3.94190971,2536.9,2536.8,8.0]
[1747732117601,3.94190971,2536.9,2536.8,21.504]
[1747732117789,3.94190971,2536.9,2536.8,8.0]
[1747732118117,3.94190971,2536.9,2536.8,21.504]
[1747732118688,3.94190971,2536.9,2536.8,22.3347]
[1747732119514,3.94190971,2536.9,2536.8,22.70849223]
[1747732120129,3.94174474,2537.0,2536.9,8.0]
[1747732124192,3.94143384,2537.2,2537.0,0.7585]
[1747732124396,1.0,2537.4,2537.2,8.0]
[1747732124614,4.94104201,2537.4,2537.3,15.595]
[1747732126923,4.94104201,2537.4,2537.3,15.98014556]
[1747732127306,4.94104201,2537.4,2537.3,16.76694556]
[1747732129443,4.94104201,2537.4,2537.3,32.71257256]
[1747732129644,4.94104201,2537.4,2537.3,27.69866756]
[1747732129820,4.94104201,2537.4,2537.3,30.46853432]
[1747732130020,4.94104201,2537.4,2537.3,27.72771132]
[1747732131043,4.94104201,2537.4,2537.3,19.53681232]
[1747732131341,4.94104201,2537.4,2537.3,26.88148632]
[1747732131542,4.94104201,2537.4,2537.3,21.88614556]
[1747732131723,4.94104201,2537.4,2537.3,33.27536756]
[1747732131919,1.0,2537.4,2537.3,33.27536756]
[1747732132245,4.94104201,2537.4,2537.3,32.00406356]
[1747732133035,4.94104201,2537.4,2537.3,26.05537256]
[1747732133231,4.94104201,2537.4,2537.3,28.01539982]
[1747732133934,4.94104201,2537.4,2537.3,38.09060082]
[1747732134108,4.94104201,2537.4,2537.3,32.93228282]
[1747732137049,4.94104201,2537.4,2537.3,49.94328282]
[1747732137350,4.94104201,2537.4,2537.3,49.16188282]
[1747732137515,4.94104201,2537.4,2537.3,46.48974906]
[1747732139850,4.94104201,2537.4,2537.3,46.48874906]
[1747732140226,1.0,2537.4,2537.3,46.48874906]
[1747732140426,1.0,2537.4,2537.3,47.28124906]
[1747732141561,4.94104201,2537.4,2537.3,32.98874906]
[1747732141867,4.94104201,2537.4,2537.3,46.48874906]
[1747732142658,4.94104201,2537.4,2537.3,44.87055806]
[1747732143055,1.0,2537.4,2537.3,44.87055806]
[1747732143265,1.0,2537.4,2537.3,45.63675806]
[1747732147866,1.0,2537.4,2537.3,49.57795539]
[1747732148070,1.0,2537.4,2537.3,45.63675806]
[1747732148449,1.0,2537.4,2537.3,49.57795539]
[1747732149036,1.0,2537.4,2537.3,50.12795539]
[1747732149272,0.05,2537.9,2537.6,3.94071514]
[1747732149473,0.05,2537.9,2537.7,44.004955]
[1747732149780,0.05,2537.9,2537.8,28.173289]
[1747732149981,3.99026557,2537.9,2537.8,25.74092]
[1747732150278,3.94057611,2537.7,2537.6,0.8032]
[1747732150454,3.94057611,2537.7,2537.6,8.0]
[1747732150655,0.05,2537.9,2537.7,0.7911]
[1747732150860,0.05,2537.9,2537.8,25.180729]
[1747732151276,0.05,2537.9,2537.8,29.12114983]
[1747732151666,0.05,2537.9,2537.8,25.0041745]
[1747732152580,0.05,2537.9,2537.8,15.9981155]
[1747732152755,0.05,2537.9,2537.8,15.0317045]
[1747732153338,3.99026557,2537.9,2537.8,15.0317045]
[1747732153544,0.05,2537.9,2537.8,18.3870045]
[1747732153747,3.99026557,2537.9,2537.8,19.89148723]
[1747732153946,3.99026557,2537.9,2537.8,38.8464455]
[1747732153947,4.81226557,2537.9,2537.8,38.8464455]
[1747732154144,4.81226557,2537.9,2537.8,30.8464455]
[1747732154593,4.81226557,2537.9,2537.8,24.9404455]
[1747732155106,4.81226557,2537.9,2537.8,24.567]
[1747732155259,5.68750633,2537.9,2537.8,24.567]
[1747732156197,4.81226557,2537.9,2537.8,24.567]
[1747732161099,4.81226557,2537.9,2537.8,17.009]
[1747732161399,4.81226557,2537.9,2537.8,24.567]
[1747732164156,4.81226557,2537.9,2537.8,17.009]
[1747732164360,4.81226557,2537.9,2537.8,24.568]
[1747732164655,5.84157026,2537.9,2537.8,24.568]
[1747732164902,4.70345267,2537.2,2537.0,17.01]
[1747732165072,3.94150802,2537.1,2537.0,17.01]
[1747732165254,3.94150802,2537.1,2537.0,33.3493]
[1747732166165,3.94150802,2537.1,2537.0,32.569]
[1747732166487,3.94150802,2537.1,2537.0,38.475]
[1747732167268,3.94150802,2537.1,2537.0,24.569]
[1747732167504,5.20236738,2537.1,2537.0,24.569]
[1747732169093,5.95946738,2537.1,2537.0,24.569]
[1747732172818,3.94150802,2537.1,2537.0,24.569]
[1747732173169,3.94129045,2537.3,2537.1,0.7913]
[1747732173375,3.94142203,2537.2,2537.1,8.7913]
[1747732173593,3.94142203,2537.2,2537.1,15.873382]
[1747732175778,3.94142203,2537.2,2537.1,8.7913]
[1747732176412,3.94142203,2537.2,2537.1,12.12733]
[1747732177698,3.94142203,2537.2,2537.1,15.253234]
[1747732178316,3.94142203,2537.2,2537.1,17.934477]
[1747732178714,3.94142203,2537.2,2537.1,15.820085]
[1747732179697,3.94142203,2537.2,2537.1,12.12733]
[1747732180217,3.94142203,2537.2,2537.1,18.66333]
[1747732180780,3.94123692,2537.3,2537.1,18.66333]
[1747732180984,3.94123692,2537.3,2537.2,0.80539538]
[1747732182820,3.94135267,2537.2,2537.1,8.0]
[1747732183031,3.94135267,2537.2,2537.1,15.558]
[1747732183232,3.94135267,2537.2,2537.1,21.465]
[1747732183735,3.94135267,2537.2,2537.1,15.558]
[1747732183956,3.94135267,2537.2,2537.1,21.465]
[1747732186892,3.94135267,2537.2,2537.1,15.558]
[1747732187092,3.94135267,2537.2,2537.1,21.465]
[1747732189092,3.94135267,2537.2,2537.1,15.558]
[1747732189291,3.94135267,2537.2,2537.1,13.465]
[1747732190187,3.94135267,2537.2,2537.1,7.558]
[1747732190425,3.94135267,2537.2,2537.1,13.465]
[1747732191624,3.94135267,2537.2,2537.1,21.465]
[1747732195032,3.94135267,2537.2,2537.1,15.558]
[1747732195240,3.94135267,2537.2,2537.1,21.465]
[1747732195438,3.94135267,2537.2,2537.1,8.0]
[1747732195732,3.94150802,2537.1,2537.0,25.01]
[1747732195939,3.94150802,2537.1,2537.0,38.475]
[1747732196507,3.94150802,2537.1,2537.0,17.01]
[1747732196703,5.36096734,2537.1,2537.0,30.475]
[1747732197533,4.70510802,2537.1,2537.0,30.475]
[1747732201038,4.70510802,2537.1,2537.0,24.568]
[1747732202705,3.94150802,2537.1,2537.0,24.568]
[1747732205425,3.94150802,2537.1,2537.0,24.567]
[1747732205760,4.74010802,2537.1,2537.0,24.567]
[1747732206051,6.00237778,2537.1,2537.0,24.567]
[1747732208658,3.94150802,2537.1,2537.0,24.567]
[1747732208946,3.94150802,2537.1,2537.0,44.135061]
[1747732209349,3.94144597,2537.2,2537.1,8.0]
[1747732210128,3.94144597,2537.2,2537.1,8.37448207]
[1747732210731,3.94144597,2537.2,2537.1,6.28248207]
[1747732211408,3.94144597,2537.2,2537.1,5.908]
[1747732211829,3.94150802,2537.1,2537.0,17.01]
[1747732212141,3.94150802,2537.1,2537.0,24.568]
[1747732212342,4.73280802,2537.1,2537.0,24.568]
[1747732212545,5.99436233,2537.1,2537.0,24.567]
[1747732213546,5.99436233,2537.1,2537.0,17.01]
[1747732213743,5.20306233,2537.1,2537.0,24.567]
[1747732213908,5.98716233,2537.1,2537.0,24.567]
[1747732214921,5.98716233,2537.1,2536.1,8.7946]
[1747732214922,3.94290671,2536.2,2536.1,17.016]
[1747732215133,3.94290671,2536.2,2536.1,32.574]
[1747732216445,3.94290671,2536.2,2536.1,24.574]
[1747732216647,3.94290671,2536.2,2536.1,30.482]
[1747732219348,3.94290671,2536.2,2536.1,17.016]
[1747732219553,4.80906552,2536.2,2536.1,24.574]
[1747732219931,3.94290671,2536.2,2536.1,24.574]
[1747732226184,3.94290671,2536.2,2536.1,17.016]
[1747732226382,3.94290671,2536.2,2536.1,30.484]
[1747732226683,3.94290671,2536.2,2536.1,24.575]
[1747732233103,3.94278137,2536.3,2536.1,33.3602]
[1747732233104,3.94284308,2536.3,2536.1,33.3602]
[1747732233304,3.94265672,2536.4,2536.2,8.7852]
[1747732233305,3.94268388,2536.4,2536.2,8.7852]
[1747732233598,3.94275125,2536.3,2536.2,8.7852]
[1747732233789,3.94275125,2536.3,2536.2,13.909]
[1747732234404,3.94275125,2536.3,2536.2,21.469]
[1747732234724,3.94275125,2536.3,2536.2,13.469]
[1747732234928,3.94290671,2536.2,2536.1,17.016]
[1747732235101,3.94290671,2536.2,2536.1,24.573]
[1747732243202,3.94290671,2536.2,2536.1,17.016]
[1747732243408,3.94290671,2536.2,2536.1,24.574]
[1747732243812,13.20384089,2536.2,2536.1,24.574]
[1747732253170,5.20384089,2536.2,2536.1,17.016]
[1747732253367,5.20384089,2536.2,2536.1,24.574]
[1747732260872,5.20384089,2536.2,2536.1,24.575]
[1747732261073,5.95924089,2536.2,2536.1,17.016]
[1747732261273,3.94415082,2535.4,2535.3,17.023]
[1747732261951,4.69955082,2535.4,2535.3,24.582]
[1747732262351,6.79019005,2535.4,2535.3,24.582]
[1747732262551,6.79019005,2535.4,2535.3,17.023]
[1747732262758,13.24986197,2535.2,2534.8,0.46672279]
[1747732262966,18.25654947,2535.2,2534.8,0.46672279]
[1747732263183,19.7971887,2535.2,2534.8,0.46672279]
[1747732263380,18.25654947,2535.2,2534.5,7.559]
[1747732264250,22.40554947,2535.2,2534.5,7.559]
[1747732265199,18.25654947,2535.2,2534.5,7.559]
[1747732265775,16.71591024,2535.2,2534.5,7.559]
[1747732265982,4.69986197,2535.2,2534.6,0.8268]
[1747732266167,4.69986197,2535.2,2535.1,7.607]
[1747732266696,4.69986197,2535.2,2535.1,0.05]
[1747732269259,3.94446197,2535.2,2535.1,0.05]
[1747732270705,3.94446197,2535.2,2535.1,7.608]
[1747732271011,6.03320679,2535.2,2535.1,7.608]
[1747732271665,3.94446197,2535.2,2535.1,7.608]
[1747732274094,11.94446197,2535.2,2535.1,7.608]
[1747732274796,3.94446197,2535.2,2535.1,8.43]
[1747732276493,3.94411698,2535.5,2535.2,0.8303]
[1747732276696,3.94398772,2535.6,2535.3,0.84383]
[1747732276988,3.94398772,2535.6,2535.5,8.0]
[1747732277190,3.94398772,2535.6,2535.5,8.8303]
[1747732278611,3.94399526,2535.5,2535.4,22.942]
[1747732278792,3.94399526,2535.5,2535.4,30.499]
[1747732278995,3.94399526,2535.5,2535.4,17.03]
[1747732279207,3.94399526,2535.5,2535.4,24.587]
[1747732284875,5.12716211,2535.5,2535.4,17.03]
[1747732285082,5.12716211,2535.5,2535.4,24.587]
[1747732286193,3.94399526,2535.5,2535.4,24.587]
[1747732287229,3.94399526,2535.5,2535.4,17.03]
[1747732287522,3.94399526,2535.5,2535.4,24.587]
[1747732294298,3.94399526,2535.5,2535.4,17.03]
[1747732294501,3.94399526,2535.5,2535.4,24.587]
[1747732294729,5.88206211,2535.5,2535.4,24.587]
[1747732297700,6.43206211,2535.5,2535.4,24.587]
[1747732299335,6.43206211,2535.5,2535.4,17.03]
[1747732299705,5.24680639,2535.3,2535.2,7.554]
[1747732300604,4.69680639,2535.3,2535.2,7.554]
[1747732300809,6.39393466,2535.3,2535.2,7.554]
[1747732303306,5.64143466,2535.3,2535.2,7.554]
[1747732307349,5.30296197,2535.2,2535.1,0.05]
[1747732307640,16.5060908,2535.2,2535.1,0.05]
[1747732308020,26.5938908,2535.2,2535.1,0.05]
[1747732308207,30.21184189,2535.2,2535.1,0.05]
[1747732309314,3.94586276,2534.3,2534.2,17.03]
[1747732312841,3.94586276,2534.3,2534.2,24.585]
[1747732316248,3.94586276,2534.3,2534.2,25.3628]
[1747732320433,3.94492879,2534.9,2534.2,35.12628]
[1747732320631,8.8244,2535.4,2534.3,8.0]
[1747732320632,3.94573887,2534.4,2534.3,8.0]
[1747732320953,3.94573887,2534.4,2534.3,8.8263]
[1747732326132,3.94562391,2534.5,2534.4,0.7519]
[1747732326437,3.94562391,2534.5,2534.4,2.35204538]
[1747732327555,1.18316685,2535.5,2534.5,0.7808]
[1747732327765,3.94526949,2534.7,2534.6,14.6948]
[1747732327937,3.94457564,2535.2,2534.7,8.8261]
[1747732328138,3.94492879,2534.9,2534.8,0.8261]
[1747732330681,3.94570707,2534.4,2534.3,8.0]
[1747732330881,3.94570707,2534.4,2534.3,24.01867228]
[1747732331088,3.94570707,2534.4,2534.3,24.78057228]
[1747732331688,3.94555139,2534.5,2534.3,24.78057228]
[1747732331689,3.94563781,2534.5,2534.3,24.01867228]
[1747732331867,3.94533312,2534.7,2534.5,0.7847]
[1747732332068,3.94539572,2534.6,2534.5,2.3714531]
[1747732332405,3.94539572,2534.6,2534.5,9.9062531]
[1747732333689,3.94532006,2534.7,2534.6,8.8307]
[1747732333983,3.94532006,2534.7,2534.6,0.8307]
[1747732337087,0.7935,2535.5,2534.6,0.8307]
[1747732337289,3.94490096,2535.0,2534.8,0.7562]
[1747732337463,3.94413501,2535.5,2534.9,16.3072]
[1747732337655,3.94337493,2535.9,2535.0,0.7562]
[1747732337850,0.7604,2536.0,2535.0,0.7562]
[1747732337851,3.94422092,2535.4,2535.1,0.7711]
[1747732338089,3.94422092,2535.4,2535.3,8.7711]
[1747732338385,3.94422092,2535.4,2535.3,0.7711]
[1747732345692,3.94422092,2535.4,2535.2,23.82011]
[1747732345865,3.94430639,2535.3,2535.2,22.943]
[1747732346491,3.94430639,2535.3,2535.2,17.03]
[1747732346695,3.94430639,2535.3,2535.2,22.942]
[1747732349298,3.94415082,2535.4,2535.3,0.8292]
[1747732350384,3.94415082,2535.4,2535.3,8.0]
[1747732353289,3.94415082,2535.4,2535.3,7.549]
[1747732353797,3.94415082,2535.4,2535.3,13.46]
[1747732356512,4.74385082,2535.4,2535.3,13.46]
[1747732357394,4.74385082,2535.4,2535.3,7.549]
[1747732357609,3.94430639,2535.3,2535.2,17.03]
[1747732357775,3.94430639,2535.3,2535.2,24.574]
[1747732357978,12.70430639,2535.3,2535.2,24.574]
[1747732360280,12.70430639,2535.3,2534.4,17.027]
[1747732360281,3.94555139,2534.5,2534.4,17.027]
[1747732360614,3.94555139,2534.5,2534.4,30.483]
[1747732361078,3.94555139,2534.5,2534.4,24.571]
[1747732361479,3.94555139,2534.5,2534.4,17.027]
[1747732361709,3.94555139,2534.5,2534.4,24.571]
[1747732365818,3.94555139,2534.5,2534.4,17.027]
[1747732366023,4.81604933,2534.5,2534.4,24.573]
[1747732366823,3.94555139,2534.5,2534.4,25.3814]
[1747732367134,3.94519771,2534.8,2534.5,8.0]
[1747732367135,3.94513507,2534.8,2534.5,8.0]
[1747732367285,3.94467248,2535.1,2534.6,0.805]
[1747732367702,3.94524006,2534.7,2534.6,0.805]
[1747732368706,3.94455914,2535.2,2534.8,0.8046]
[1747732368905,3.94485618,2535.0,2534.9,8.42646]
[1747732370804,3.94485618,2535.0,2534.9,14.33946]
[1747732371292,3.94485618,2535.0,2534.9,7.546]
[1747732371494,3.94485618,2535.0,2534.9,13.459]
[1747732372893,3.94492879,2534.9,2534.8,0.8046]
[1747732373095,3.94492879,2534.9,2534.8,22.2616]
[1747732376626,3.94524006,2534.7,2534.4,17.8459]
[1747732376826,3.94555139,2534.5,2534.4,19.63049]
[1747732377025,3.94555139,2534.5,2534.4,41.08749]
[1747732379835,3.94555139,2534.5,2534.4,50.419472]
[1747732380003,3.94555139,2534.5,2534.4,47.932442]
[1747732380201,3.94555139,2534.5,2534.4,46.953702]
[1747732380397,3.94555139,2534.5,2534.4,41.08749]
[1747732380828,3.94555139,2534.5,2534.4,38.484]
[1747732381232,3.94555139,2534.5,2534.4,32.572]
[1747732381436,3.94555139,2534.5,2534.4,38.485]
[1747732384220,3.94555139,2534.5,2534.4,32.572]
[1747732384427,3.94555139,2534.5,2534.4,38.485]
[1747732388939,3.94548086,2534.6,2534.4,42.38736288]
[1747732389118,3.94548086,2534.6,2534.5,8.0]
[1747732391239,4.74468086,2534.6,2534.5,8.0]
[1747732391537,4.74468086,2534.6,2534.5,13.913]
[1747732393509,3.94548086,2534.6,2534.5,13.913]
[1747732394942,4.69985139,2534.5,2534.4,24.572]
[1747732395260,4.69985139,2534.5,2534.4,24.567]
[1747732396562,3.94555139,2534.5,2534.4,24.567]
[1747732412666,4.72335139,2534.5,2534.4,24.568]
[1747732412874,5.9847635,2534.5,2534.4,24.568]
[1747732413780,3.94555139,2534.5,2534.4,24.568]
[1747732413982,3.94555139,2534.5,2534.4,32.568]
[1747732414777,3.94555139,2534.5,2534.4,30.482]
[1747732417990,3.94601846,2534.2,2534.1,0.8188]
[1747732418494,3.94601846,2534.2,2534.1,8.3598]
[1747732418793,3.94601846,2534.2,2534.1,12.778752]
[1747732419197,3.94601846,2534.2,2534.1,18.691752]
[1747732420395,3.94601846,2534.2,2534.1,21.40759948]
[1747732421004,3.94601846,2534.2,2534.1,15.49459948]
[1747732421306,3.94601846,2534.2,2534.1,24.270108]
[1747732421597,3.94601846,2534.2,2534.1,22.2648]
[1747732422396,3.94601846,2534.2,2534.1,16.3518]
[1747732422689,3.94601846,2534.2,2534.1,22.2648]
[1747732423192,3.94594793,2534.3,2534.2,8.0]
[1747732423353,3.94586276,2534.3,2534.2,8.0]
[1747732425389,3.94586276,2534.3,2534.2,17.032]
[1747732426289,3.94586276,2534.3,2534.2,30.478]
[1747732426783,3.94586276,2534.3,2534.2,24.565]
[1747732426989,5.56762188,2534.3,2534.2,24.565]
[1747732428411,3.94586276,2534.3,2534.2,24.565]
[1747732430577,4.77896276,2534.3,2534.2,24.566]
[1747732437210,4.77896276,2534.3,2534.2,24.567]
[1747732444089,4.77896276,2534.3,2534.2,17.032]
[1747732444284,5.80528703,2534.3,2534.2,24.567]
[1747732449720,5.80528703,2534.3,2534.2,24.56]
[1747732454028,5.80528703,2534.3,2534.2,17.032]
[1747732454199,5.80528703,2534.3,2534.2,24.56]
[1747732456605,5.80528703,2534.3,2534.2,7.528]
[1747732457850,7.34383855,2534.3,2534.2,7.528]
[1747732458141,7.89383855,2534.3,2534.2,7.528]
[1747732458451,5.25041846,2534.2,2534.1,0.0433]
[1747732458645,15.828107,2534.2,2534.1,0.0433]
[1747732460743,30.047107,2534.2,2534.1,0.0433]
[1747732461239,30.67561215,2534.2,2534.1,0.0433]
[1747732461758,26.72043354,2534.2,2534.1,0.0433]
[1747732461910,26.52661215,2534.2,2534.1,0.0433]
[1747732462647,25.898107,2534.2,2534.1,0.0433]
[1747732463142,26.29696952,2534.2,2534.1,0.0433]
[1747732470317,27.83552104,2534.2,2534.1,0.0433]
[1747732471360,19.83552104,2534.2,2534.1,0.0433]
[1747732471571,27.83552104,2534.2,2534.1,0.0433]
[1747732475473,25.74696952,2534.2,2534.1,0.0433]
[1747732475651,27.28552104,2534.2,2534.1,0.0433]
[1747732475849,27.83552104,2534.2,2534.1,0.0433]
[1747732476447,28.46396617,2534.2,2534.1,0.0433]
[1747732481890,32.61296617,2534.2,2534.1,0.0433]
[1747732482074,34.15151769,2534.2,2534.1,0.0433]
[1747732482388,34.15151769,2534.2,2533.1,7.572]
[1747732482389,3.94757618,2533.2,2533.1,7.572]
[1747732492810,3.94757618,2533.2,2533.1,0.05]
[1747732493017,3.94757618,2533.2,2533.1,7.573]
[1747732498542,3.94757618,2533.2,2533.1,8.3499]
[1747732501004,3.94757618,2533.2,2533.1,8.3509]
[1747732501209,4.73707922,2533.2,2533.1,7.574]
[1747732502640,3.94757618,2533.2,2533.1,8.329]
[1747732505137,3.94757618,2533.2,2533.1,7.574]
[1747732505851,3.94757618,2533.2,2533.1,0.05]
[1747732506145,3.94757618,2533.2,2533.1,7.574]
[1747732506845,3.94757618,2533.2,2533.1,0.05]
[1747732507050,23.58682437,2533.2,2533.1,0.05]
[1747732507471,24.37102437,2533.2,2533.1,0.05]
[1747732508563,24.9994695,2533.2,2533.1,0.05]
[1747732512120,26.74332948,2533.2,2533.1,0.05]
[1747732512454,25.20477796,2533.2,2533.1,0.05]
[1747732512982,24.57633283,2533.2,2533.1,0.05]
[1747732513339,26.11488435,2533.2,2533.1,0.05]
[1747732513546,24.57633283,2533.2,2533.1,0.05]
[1747732516521,16.78068435,2533.2,2533.1,0.05]
[1747732516646,14.01757618,2533.2,2533.1,0.05]
[1747732516851,14.01757618,2533.2,2533.1,0.8176]
[1747732518957,3.94757618,2533.2,2533.1,0.8176]
[1747732535962,3.94757618,2533.2,2533.1,0.05]
[1747732536267,3.94757618,2533.2,2533.1,7.564]
[1747732538771,3.94757618,2533.2,2533.1,8.3944]
[1747732543065,3.94757618,2533.2,2533.1,11.53004]
[1747732552103,3.94757618,2533.2,2533.1,17.44704]
[1747732552302,3.94757618,2533.2,2533.1,14.3114]
[1747732553961,3.94742036,2533.3,2533.2,0.8225]
[1747732554164,3.94742036,2533.3,2533.2,8.8082]
[1747732554587,0.8043,2534.3,2533.3,0.8082]
[1747732554795,0.62840949,2534.4,2533.5,0.8082]
[1747732555004,3.94658912,2533.9,2533.7,0.8082]
[1747732555302,3.9466414,2533.8,2533.7,0.8082]
[1747732556197,3.9466414,2533.8,2533.7,14.2312]
[1747732556565,3.9466414,2533.8,2533.7,0.8082]
[1747732556778,3.9466414,2533.8,2533.7,22.2312]
[1747732557198,3.9466414,2533.8,2533.7,16.3142]
[1747732557912,3.9466414,2533.8,2533.7,18.53732]
[1747732558119,3.9466414,2533.8,2533.7,11.03132]
[1747732558422,3.9466414,2533.8,2533.7,16.3132]
[1747732561309,3.9466414,2533.8,2533.7,31.704453]
[1747732561649,3.9466414,2533.8,2533.7,31.684453]
[1747732561837,3.94622497,2534.1,2533.9,0.7882]
[1747732562131,3.94601846,2534.2,2534.1,8.769]
[1747732562628,3.94601846,2534.2,2534.1,36.93875]
[1747732562801,3.94601846,2534.2,2534.1,35.561621]
[1747732563004,3.94601846,2534.2,2534.1,32.861621]
[1747732563225,3.94601846,2534.2,2534.1,26.58109438]
[1747732563437,3.94601846,2534.2,2534.0,17.038]
[1747732563438,3.94617418,2534.1,2534.0,17.038]
[1747732563612,3.94617418,2534.1,2534.0,24.542]
[1747732566342,3.94617418,2534.1,2534.0,32.542]
[1747732567443,3.94617418,2534.1,2534.0,25.038]
[1747732567646,3.94617418,2534.1,2534.0,38.457]
[1747732573095,3.94617418,2534.1,2534.0,32.542]
[1747732573292,4.73539344,2534.1,2534.0,24.542]
[1747732573490,5.49749344,2534.1,2534.0,24.533]
[1747732574449,7.58604496,2534.1,2534.0,17.038]
[1747732574850,5.49749344,2534.1,2534.0,17.038]
[1747732577204,3.94757618,2533.2,2533.1,0.05]
[1747732577365,3.94757618,2533.2,2533.1,7.546]
[1747732580085,3.94757618,2533.2,2533.1,15.546]
[1747732580664,3.94757618,2533.2,2533.1,28.966989]
[1747732580864,3.94757618,2533.2,2533.1,27.768005]
[1747732581063,3.94757618,2533.2,2533.1,20.768903]
[1747732582564,3.94757618,2533.2,2533.1,15.546]
[1747732582765,3.94757618,2533.2,2533.1,8.05]
[1747732583094,3.94757618,2533.2,2533.1,21.463]
[1747732584098,3.94757618,2533.2,2533.1,36.500322]
[1747732584362,3.94723727,2533.5,2533.2,8.7573]
[1747732584565,3.94723727,2533.5,2533.4,8.0]
[1747732586299,3.94697447,2533.6,2533.4,29.393045]
[1747732586477,3.94697447,2533.6,2533.5,0.7729]
[1747732587966,3.94697447,2533.6,2533.5,29.152517]
[1747732588169,3.94616632,2534.2,2533.6,0.7598]
[1747732588391,3.9466542,2533.8,2533.7,16.01689828]
[1747732589171,3.9466414,2533.8,2533.7,37.68761528]
[1747732589372,3.9466414,2533.8,2533.7,28.80339928]
[1747732589610,3.9466414,2533.8,2533.7,26.17026228]
[1747732589768,3.9466414,2533.8,2533.7,27.00236228]
[1747732590400,3.9466414,2533.8,2533.7,25.03605228]
[1747732590589,3.9466414,2533.8,2533.7,21.24955528]
[1747732591186,3.9466414,2533.8,2533.7,13.75355528]
[1747732591490,3.9466414,2533.8,2533.7,25.14790828]
[1747732591708,3.9466414,2533.8,2533.7,22.76399828]
[1747732592086,3.9466414,2533.8,2533.7,16.84899828]
[1747732592308,3.9466414,2533.8,2533.7,22.76399828]
[1747732595604,3.9466414,2533.8,2533.7,31.79999828]
[1747732599109,3.9466414,2533.8,2533.7,24.532]
[1747732599308,3.9466414,2533.8,2533.7,30.447]
[1747732600985,3.9466414,2533.8,2533.7,31.2018]
[1747732603724,3.9466414,2533.8,2533.7,17.7908]
[1747732604021,3.9466414,2533.8,2533.7,17.036]
[1747732604235,3.9466414,2533.8,2533.7,24.526]
[1747732604429,3.9466414,2533.8,2533.7,30.441]
[1747732604798,3.9466414,2533.8,2533.7,24.526]
[1747732605115,3.9466414,2533.8,2533.7,30.441]
[1747732606198,3.9466414,2533.8,2533.7,33.4851]
[1747732607417,3.9466414,2533.8,2533.7,30.441]
[1747732608132,3.9466414,2533.8,2533.7,17.036]